bitfinex/quotes_ETHUSD_20240719
["timestamp","ask_amount","ask_price","bid_price","bid_amount"]
[1721388627202,2.93328,3409.2,3408.8,1.054]
[1721388628063,2.93333,3409.1,3408.8,4.054]
[1721388628265,2.93333,3409.1,3408.4,0.61390267]
[1721388628266,2.4893,3409.0,3408.4,0.61390267]
[1721388628466,2.93384,3408.5,3407.9,0.61390267]
[1721388628773,2.93384,3408.5,3407.8,5.35963]
[1721388628774,2.93384,3408.5,3408.1,1.054]
[1721388630211,2.93384,3408.5,3408.3,1.054]
[1721388630424,2.93354,3408.9,3408.3,1.054]
[1721388630587,3.874552,3408.9,3408.6,1.054]
[1721388630982,2.93358,3408.8,3408.6,1.054]
[1721388631909,0.941012,3408.9,3408.6,1.054]
[1721388632114,2.93326,3409.2,3408.8,1.054]
[1721388632314,0.526476,3409.1,3408.8,1.054]
[1721388633690,0.526476,3409.1,3408.5,2.93377]
[1721388633691,2.9331,3409.4,3409.0,1.054]
[1721388633895,0.70958804,3409.5,3409.2,1.054]
[1721388634103,2.93292,3409.6,3409.2,1.054]
[1721388637230,2.4317,3410.0,3409.2,1.054]
[1721388637231,2.93281,3409.7,3409.2,1.054]
[1721388637561,2.93281,3409.7,3409.4,1.054]
[1721388638742,2.93281,3409.7,3409.2,1.054]
[1721388638942,2.9329,3409.6,3409.2,1.054]
[1721388641469,2.93299,3409.5,3409.2,1.054]
[1721388644991,3.762568,3409.7,3409.4,1.054]
[1721388645341,0.829708,3409.7,3409.4,1.054]
[1721388646866,3.762518,3409.7,3409.4,1.054]
[1721388647383,3.6024158,3409.6,3409.2,1.054]
[1721388650389,3.6024158,3409.6,3409.0,4.054]
[1721388650700,3.6024158,3409.6,3409.0,1.054]
[1721388651491,0.6695258,3409.6,3409.0,1.054]
[1721388651698,2.9333,3409.2,3408.8,4.054]
[1721388651854,2.9333,3409.2,3408.8,1.054]
[1721388652485,2.93329,3409.2,3408.8,1.054]
[1721388652784,2.93329,3409.2,3409.0,1.054]
[1721388653582,2.93332,3409.1,3409.0,1.054]
[1721388654284,3.519971,3409.1,3408.8,1.054]
[1721388654989,2.93342,3409.0,3408.8,1.054]
[1721388655150,2.93356,3408.9,3408.6,1.054]
[1721388655359,2.93361,3408.8,3408.4,1.054]
[1721388655566,2.93367,3408.7,3408.4,1.054]
[1721388657575,2.93355,3408.9,3408.6,1.054]
[1721388657872,2.93333,3409.1,3408.8,1.054]
[1721388658690,2.93333,3409.1,3409.0,1.054]
[1721388660009,3.331922,3409.3,3409.0,1.054]
[1721388660216,0.398712,3409.3,3409.2,1.054]
[1721388660372,2.93309,3409.4,3409.2,1.054]
[1721388660567,2.93298,3409.5,3409.2,1.054]
[1721388662117,2.93298,3409.5,3409.0,1.054]
[1721388662833,2.93298,3409.5,3409.2,1.054]
[1721388664410,2.9329,3409.6,3409.2,1.054]
[1721388664626,2.9329,3409.6,3409.4,1.054]
[1721388665701,2.93318,3409.3,3409.2,1.054]
[1721388665886,2.93318,3409.3,3409.0,1.054]
[1721388666085,2.93318,3409.3,3408.8,1.054]
[1721388667304,2.93318,3409.3,3409.0,1.054]
[1721388668328,2.93318,3409.3,3409.2,1.054]
[1721388668825,2.93307,3409.4,3409.2,1.054]
[1721388670026,2.93307,3409.4,3409.0,2.3213]
[1721388672058,2.93316,3409.3,3408.7,5.93366]
[1721388672240,2.93325,3409.2,3408.7,3.0]
[1721388672730,2.93333,3409.1,3408.7,3.0]
[1721388672899,2.93333,3409.1,3408.6,2.2548]
[1721388673086,2.93333,3409.1,3408.8,3.0]
[1721388673298,2.93333,3409.1,3408.6,2.2548]
[1721388673505,2.93324,3409.2,3408.6,5.18854]
[1721388673740,2.93324,3409.2,3408.7,3.0]
[1721388676439,5.86623,3409.4,3408.7,5.93365]
[1721388676944,2.93318,3409.3,3408.7,5.93365]
[1721388681135,2.93291,3409.6,3408.7,7.10737952]
[1721388681355,2.93291,3409.6,3408.9,2.93344]
[1721388681513,2.93298,3409.5,3408.9,2.93344]
[1721388681707,2.93291,3409.6,3408.9,2.93344]
[1721388681938,2.93291,3409.6,3409.0,2.2927]
[1721388684049,4.16340626,3409.8,3409.0,6.52602895]
[1721388684217,2.93274,3409.8,3409.2,2.93322]
[1721388686870,2.93274,3409.8,3409.2,3.03322]
[1721388687176,2.93281,3409.7,3409.2,0.1]
[1721388687346,2.93275,3409.8,3409.2,0.1]
[1721388687736,2.93285,3409.7,3409.2,0.1]
[1721388688635,2.9329,3409.6,3409.2,0.1]
[1721388689036,2.03945356,3409.9,3409.2,0.1]
[1721388689037,2.93315,3409.3,3409.2,0.1]
[1721388689366,8.3296,3409.3,3409.2,0.1]
[1721388689684,9.73283876,3409.3,3409.2,0.1]
[1721388703353,12.66598876,3409.3,3409.2,0.1]
[1721388703882,13.89665502,3409.3,3409.2,0.1]
[1721388704447,10.96350502,3409.3,3409.2,0.1]
[1721388707352,13.89665502,3409.3,3409.2,0.1]
[1721388707744,10.96350502,3409.3,3409.2,0.1]
[1721388708190,9.73283876,3409.3,3409.2,0.1]
[1721388708403,10.96350502,3409.3,3409.2,0.1]
[1721388708976,13.89665502,3409.3,3409.2,0.1]
[1721388709380,12.66598876,3409.3,3409.2,0.1]
[1721388709561,13.89739956,3409.3,3409.2,0.1]
[1721388709761,9.73283876,3409.3,3409.2,0.1]
[1721388710065,12.66598876,3409.3,3409.2,0.1]
[1721388710864,9.73283876,3409.3,3409.2,0.1]
[1721388711102,7.26953876,3409.3,3409.2,0.1]
[1721388711456,8.5008546,3409.3,3409.2,0.1]
[1721388712362,7.26953876,3409.3,3409.2,0.1]
[1721388719985,2.93315,3409.3,3409.2,0.1]
[1721388723637,1.23131584,3409.5,3409.2,0.1]
[1721388723947,2.93293,3409.6,3409.4,1.055]
[1721388724239,5.86591,3409.6,3409.4,1.055]
[1721388724397,2.93293,3409.6,3409.4,1.055]
[1721388726237,2.93298,3409.5,3409.4,1.055]
[1721388726840,2.93315,3409.3,3409.2,0.1]
[1721388727027,2.93315,3409.3,3409.2,1.155]
[1721388728338,2.93298,3409.5,3409.2,1.155]
[1721388728727,2.93289,3409.6,3409.4,1.055]
[1721388731170,4.16420584,3409.6,3409.4,1.055]
[1721388731658,2.93298,3409.5,3409.4,1.055]
[1721388731822,2.93298,3409.5,3409.2,1.155]
[1721388734459,4.16429584,3409.5,3409.2,1.155]
[1721388734689,2.93315,3409.3,3409.2,1.155]
[1721388736854,4.16429584,3409.5,3409.2,1.50812]
[1721388737028,4.16429584,3409.5,3409.4,1.055]
[1721388737229,2.93298,3409.5,3409.4,1.055]
[1721388738628,2.93298,3409.5,3409.4,1.155]
[1721388739248,2.93283,3409.7,3409.4,3.6389]
[1721388739461,4.16414584,3409.7,3409.6,1.055]
[1721388739666,2.93283,3409.7,3409.6,1.055]
[1721388740175,1.23131584,3409.8,3409.6,1.055]
[1721388740345,4.47283975,3409.9,3409.6,1.055]
[1721388740346,4.16397584,3409.9,3409.6,1.055]
[1721388740666,4.16397584,3409.9,3409.8,1.055]
[1721388741442,2.93266,3409.9,3409.8,1.055]
[1721388741638,4.16397584,3409.9,3409.8,1.055]
[1721388742280,2.93266,3409.9,3409.8,1.055]
[1721388743870,2.83266,3409.9,3409.8,1.055]
[1721388744444,2.9325,3410.1,3409.8,1.055]
[1721388747087,1.23131584,3410.2,3410.0,1.055]
[1721388747268,1.5388716,3410.3,3410.0,1.39198]
[1721388747269,1.23131584,3410.3,3410.0,1.39198]
[1721388747475,4.16348584,3410.5,3410.2,1.055]
[1721388747649,2.93217,3410.5,3410.2,1.055]
[1721388752853,2.93217,3410.5,3410.2,3.3817]
[1721388753352,2.93217,3410.5,3410.4,1.055]
[1721388754581,2.93205,3410.6,3410.4,1.055]
[1721388756191,1.23131584,3411.0,3410.4,1.055]
[1721388756192,2.93192,3410.8,3410.4,1.055]
[1721388756679,2.93198,3410.7,3410.4,1.055]
[1721388758054,2.93212,3410.5,3410.2,1.055]
[1721388759094,2.93235,3410.3,3410.0,1.055]
[1721388759258,2.93235,3410.3,3409.6,2.4983]
[1721388759259,0.831097,3410.3,3409.6,2.4983]
[1721388759459,2.4465,3410.6,3409.6,1.155]
[1721388759460,2.93272,3409.8,3409.6,1.155]
[1721388764682,2.93264,3409.9,3409.6,1.155]
[1721388764866,2.93264,3409.9,3409.8,1.055]
[1721388765378,2.93253,3410.1,3409.8,1.055]
[1721388765576,2.93253,3410.1,3410.0,1.055]
[1721388767213,3.519024,3410.1,3410.0,1.055]
[1721388767903,2.93261,3410.0,3409.8,1.055]
[1721388768464,2.93263,3409.9,3409.8,1.055]
[1721388769713,2.93253,3410.1,3409.8,3.4381]
[1721388769889,2.93253,3410.1,3410.0,1.055]
[1721388774484,2.93253,3410.1,3409.6,0.1]
[1721388774485,2.9328,3409.7,3409.6,0.1]
[1721388774691,2.9327,3409.9,3409.6,1.155]
[1721388775023,2.9327,3409.9,3409.8,1.055]
[1721388776537,2.93247,3410.1,3409.8,1.055]
[1721388776844,2.93247,3410.1,3410.0,3.4555]
[1721388781608,2.93247,3410.1,3410.0,1.055]
[1721388785548,2.93258,3410.0,3409.8,1.055]
[1721388785847,2.93263,3409.9,3409.8,1.055]
[1721388794546,1.23131584,3410.3,3409.8,1.41766]
[1721388794767,5.86458,3410.3,3410.2,1.055]
[1721388800063,4.16347584,3410.5,3410.2,1.055]
[1721388800234,2.93216,3410.5,3410.4,1.055]
[1721388800632,2.93234,3410.3,3410.2,1.055]
[1721388801132,2.93248,3410.1,3409.7,2.2568]
[1721388801364,2.93248,3410.1,3410.0,1.055]
[1721388807975,2.93279,3409.8,3409.6,0.1]
[1721388808137,2.93279,3409.8,3409.7,1.055]
[1721388809904,2.9328,3409.7,3409.6,0.1]
[1721388810049,7.09691584,3409.7,3409.6,0.1]
[1721388810251,5.8656,3409.7,3409.6,0.1]
[1721388810454,6.01483832,3409.7,3409.6,0.1]
[1721388810660,11.41143832,3409.7,3409.6,0.1]
[1721388810962,12.71673605,3409.7,3409.6,0.1]
[1721388811347,14.56404684,3409.7,3409.6,0.1]
[1721388811768,12.71673605,3409.7,3409.6,0.1]
[1721388812170,14.56404684,3409.7,3409.6,0.1]
[1721388812388,12.71673605,3409.7,3409.6,0.1]
[1721388812735,12.56749773,3409.7,3409.6,0.1]
[1721388813751,14.10560447,3409.7,3409.6,0.1]
[1721388813941,12.56749773,3409.7,3409.6,0.1]
[1721388814280,8.40113803,3409.7,3409.6,0.1]
[1721388814452,7.0958403,3409.7,3409.6,0.1]
[1721388814656,5.8656,3409.7,3409.6,0.1]
[1721388822896,2.9328,3409.7,3409.6,0.1]
[1721388827209,2.93267,3409.9,3409.6,0.1]
[1721388827361,2.93267,3409.9,3409.8,1.055]
[1721388827558,2.93267,3409.9,3409.8,1.40798]
[1721388827801,2.93249,3410.1,3409.8,1.40798]
[1721388828886,2.93249,3410.1,3409.9,2.3714]
[1721388830809,2.93255,3410.0,3409.9,2.3714]
[1721388831807,2.93268,3409.9,3409.6,1.155]
[1721388835119,2.4277,3410.3,3409.6,0.1]
[1721388835323,2.9328,3409.7,3409.6,0.1]
[1721388842302,2.93269,3409.9,3409.6,0.1]
[1721388842621,2.93272,3409.8,3409.7,1.055]
[1721388845924,2.93272,3409.8,3409.7,3.5277]
[1721388846994,2.93258,3410.0,3409.7,3.5277]
[1721388846995,5.8652,3410.0,3409.7,3.5277]
[1721388848096,2.93264,3409.9,3409.7,3.5277]
[1721388853500,2.93264,3409.9,3409.6,0.1]
[1721388853690,5.8656,3409.7,3409.6,0.1]
[1721388862845,7.0958403,3409.7,3409.6,0.1]
[1721388863268,5.8656,3409.7,3409.6,0.1]
[1721388865857,7.0958403,3409.7,3409.6,0.1]
[1721388868454,5.8656,3409.7,3409.6,0.1]
[1721388868850,7.0958403,3409.7,3409.6,0.1]
[1721388872498,9.04138962,3409.7,3409.6,0.1]
[1721388877990,7.96107302,3409.7,3409.6,0.1]
[1721388878189,6.72918962,3409.7,3409.6,0.1]
[1721388878917,7.96107292,3409.7,3409.6,0.1]
[1721388879811,7.0974833,3409.7,3409.6,1.155]
[1721388880120,2.9328,3409.7,3409.6,1.155]
[1721388880832,2.93267,3409.9,3409.6,1.155]
[1721388880986,2.93267,3409.9,3409.8,1.055]
[1721388882308,2.93267,3409.9,3409.8,3.3162]
[1721388882532,2.93267,3409.9,3409.8,3.66782]
[1721388884493,2.93255,3410.0,3409.8,3.66782]
[1721388884695,2.93255,3410.0,3409.9,1.055]
[1721388888427,2.93255,3410.0,3409.8,2.2612]
[1721388888723,2.93255,3410.0,3409.9,1.055]
[1721388889133,2.93272,3409.8,3409.7,1.055]
[1721388890687,2.93272,3409.8,3409.6,0.1]
[1721388890896,2.93272,3409.8,3409.7,1.055]
[1721388892893,5.86544,3409.8,3409.7,1.055]
[1721388894493,1.2318833,3410.1,3409.7,1.055]
[1721388894494,2.93259,3410.0,3409.7,1.055]
[1721388894729,2.93264,3409.9,3409.7,2.2798]
[1721388895900,2.93264,3409.9,3409.8,1.055]
[1721388900543,2.93264,3409.9,3409.8,1.40848]
[1721388901256,2.93264,3409.9,3409.8,1.055]
[1721388901740,2.93263,3409.9,3409.8,1.055]
[1721388904247,5.86526,3409.9,3409.6,1.155]
[1721388904415,2.9328,3409.7,3409.6,1.155]
[1721388905417,5.8656,3409.7,3409.6,1.155]
[1721388908823,5.8656,3409.7,3409.6,0.1]
[1721388909140,6.86860733,3409.7,3409.6,0.1]
[1721388909344,8.10049063,3409.7,3409.6,0.1]
[1721388910122,8.10049063,3409.7,3409.6,0.2]
[1721388910608,9.80140733,3409.7,3409.6,0.2]
[1721388910809,17.07096901,3409.7,3409.6,0.2]
[1721388911116,11.73156,3409.6,3409.5,0.1]
[1721388911450,11.73156,3409.6,3409.2,0.1]
[1721388911451,11.7326,3409.3,3409.2,1e-05]
[1721388911611,15.2774,3409.3,3409.2,1e-05]
[1721388911947,20.43191502,3409.3,3409.2,1e-05]
[1721388912151,18.2774,3409.3,3409.2,1e-05]
[1721388913424,20.12162287,3409.3,3409.2,1e-05]
[1721388913749,21.90754416,3409.3,3409.2,1e-05]
[1721388914149,19.00832129,3409.3,3409.2,1e-05]
[1721388915825,12.12100473,3409.3,3409.2,1e-05]
[1721388916049,5.8663,3409.3,3409.2,1e-05]
[1721388917566,5.8663,3409.3,3409.2,0.10001]
[1721388919433,5.7663,3409.3,3409.2,0.10001]
[1721388919744,2.83315,3409.3,3409.2,0.10001]
[1721388919942,5.8662,3409.4,3409.2,1.15501]
[1721388920140,2.93315,3409.3,3409.2,1.15501]
[1721388920341,3.5562247,3409.9,3409.2,1.15501]
[1721388920342,2.93303,3409.5,3409.2,1.514391]
[1721388920542,10.42238,3410.2,3409.2,1.514391]
[1721388920543,2.93274,3409.8,3409.4,1.055]
[1721388920756,2.93274,3409.8,3409.2,0.459391]
[1721388920757,2.93274,3409.8,3409.6,1.055]
[1721388921130,2.9328,3409.7,3409.6,1.055]
[1721388922130,2.9328,3409.7,3409.3,2.2817]
[1721388922334,2.9328,3409.7,3409.4,0.2741091]
[1721388924541,2.9328,3409.7,3409.3,2.2817]
[1721388924542,2.93296,3409.6,3409.3,2.2817]
[1721388924769,2.93298,3409.5,3409.2,0.459391]
[1721388924938,2.93312,3409.4,3409.2,0.459391]
[1721388925155,2.93312,3409.4,3409.2,0.10001]
[1721388929387,2.93312,3409.4,3409.2,0.20001]
[1721388930074,2.93292,3409.6,3409.2,0.20001]
[1721388930269,2.93292,3409.6,3409.3,2.2868]
[1721388930586,2.93315,3409.3,3409.2,0.20001]
[1721388930886,2.93433,3408.0,3407.6,2.2868]
[1721388931088,2.93379,3408.6,3407.2,2.53]
[1721388931089,2.93436,3407.9,3407.2,2.2587]
[1721388931249,2.93453,3407.7,3407.3,0.27186625]
[1721388934667,2.93453,3407.7,3407.3,0.37186625]
[1721388936073,2.93439,3407.9,3407.3,0.37186625]
[1721388936507,2.93439,3407.9,3407.7,0.1]
[1721388937362,2.93444,3407.8,3407.7,0.1]
[1721388939982,5.86888,3407.8,3407.7,0.1]
[1721388942286,5.76888,3407.8,3407.7,0.1]
[1721388947682,8.70332,3407.8,3407.7,0.1]
[1721388959274,11.63776,3407.8,3407.7,0.1]
[1721388959437,12.950636,3407.8,3407.7,0.1]
[1721388961774,15.266136,3407.8,3407.7,0.1]
[1721388961998,15.166136,3407.8,3407.7,0.1]
[1721388966767,18.166136,3407.8,3407.7,0.1]
[1721388967799,8.80434,3407.4,3407.3,0.1]
[1721388968131,14.17452,3407.4,3407.3,0.1]
[1721388968575,17.17452,3407.4,3407.3,0.1]
[1721388973360,18.40284157,3407.4,3407.3,0.1]
[1721388973556,5.87146,3406.3,3406.2,2.3]
[1721388973952,2.4178,3406.9,3405.6,2.3813]
[1721388974293,2.93625,3405.7,3405.6,2.3813]
[1721388976242,2.93605,3406.0,3405.6,2.3813]
[1721388976444,2.93549,3406.6,3405.8,2.4488]
[1721388976641,2.93527,3406.9,3405.8,2.4488]
[1721388976875,2.93572,3406.4,3405.8,2.4488]
[1721388977080,2.93578,3406.3,3405.8,2.4488]
[1721388977394,2.93578,3406.3,3405.9,0.591678]
[1721388978677,2.93606,3406.0,3405.8,2.4488]
[1721388978881,2.93606,3406.0,3405.9,0.1]
[1721388980390,2.9359,3406.1,3405.9,0.1]
[1721388982162,2.9359,3406.1,3406.0,2.2971]
[1721388984614,7.49,3406.9,3405.9,0.1]
[1721388984615,2.93599,3406.0,3405.9,0.1]
[1721388984958,2.83599,3406.0,3405.9,0.1]
[1721388987417,2.73599,3406.0,3405.9,0.1]
[1721388988993,2.73599,3406.0,3405.9,0.2]
[1721388989316,5.67198,3406.0,3405.9,0.2]
[1721388990340,6.532766,3406.0,3405.9,0.2]
[1721388990517,9.468756,3406.0,3405.9,0.2]
[1721388991707,9.368756,3406.0,3405.9,0.2]
[1721388993281,9.368756,3406.0,3405.9,0.3]
[1721388996023,9.268756,3406.0,3405.9,0.3]
[1721388998699,9.168756,3406.0,3405.9,0.3]
[1721388999432,8.30797,3406.0,3405.9,0.3]
[1721388999739,5.37198,3406.0,3405.9,0.3]
[1721389000035,5.37198,3406.0,3405.9,2.5775]
[1721389000244,2.43599,3406.0,3405.9,2.5775]
[1721389003209,5.37198,3406.0,3405.9,0.3]
[1721389004005,5.27198,3406.0,3405.9,0.3]
[1721389005508,2.33599,3406.0,3405.9,0.3]
[1721389006164,5.27198,3406.0,3405.9,0.3]
[1721389006732,5.17198,3406.0,3405.9,0.3]
[1721389007136,2.23599,3406.0,3405.9,0.3]
[1721389008424,2.93597,3406.1,3405.9,0.3]
[1721389008935,2.93599,3406.0,3405.9,0.3]
[1721389009816,5.87198,3406.0,3405.9,0.3]
[1721389010757,2.93599,3406.0,3405.9,0.3]
[1721389010918,5.77198,3406.0,3405.9,0.3]
[1721389015167,7.00030157,3406.0,3405.9,0.3]
[1721389015522,8.14789172,3406.0,3405.9,0.3]
[1721389015948,9.85556015,3406.0,3405.9,0.3]
[1721389016311,11.39545457,3406.0,3405.9,0.3]
[1721389016513,11.29545457,3406.0,3405.9,0.3]
[1721389017960,11.19545457,3406.0,3405.9,0.3]
[1721389018162,11.19542844,3406.0,3405.9,0.3]
[1721389018343,9.65556015,3406.0,3405.9,0.3]
[1721389018662,11.19549334,3406.0,3405.9,0.3]
[1721389018837,6.61957015,3406.0,3405.9,0.3]
[1721389019045,8.15940143,3406.0,3405.9,0.3]
[1721389019342,11.09539143,3406.0,3405.9,0.3]
[1721389019550,9.55556015,3406.0,3405.9,0.3]
[1721389020134,9.45556015,3406.0,3405.9,0.3]
[1721389021344,9.35556015,3406.0,3405.9,0.3]
[1721389022770,9.25556015,3406.0,3405.9,0.3]
[1721389023965,7.01957015,3406.0,3405.9,0.3]
[1721389024178,7.41218637,3406.0,3405.9,0.3]
[1721389024377,5.87198,3406.0,3405.9,0.3]
[1721389024957,7.41218637,3406.0,3405.9,0.3]
[1721389025390,7.31218637,3406.0,3405.9,0.3]
[1721389026677,7.21218637,3406.0,3405.9,0.3]
[1721389026873,7.21249527,3406.0,3405.9,0.3]
[1721389027770,5.67198,3406.0,3405.9,0.3]
[1721389028083,9.65932683,3406.0,3405.9,0.3]
[1721389028582,6.72333683,3406.0,3405.9,0.3]
[1721389029271,6.62333683,3406.0,3405.9,0.3]
[1721389029466,9.55932683,3406.0,3405.9,0.3]
[1721389030068,6.62333683,3406.0,3405.9,0.3]
[1721389030789,6.52333683,3406.0,3405.9,0.3]
[1721389031969,6.42333683,3406.0,3405.9,0.3]
[1721389033402,6.32333683,3406.0,3405.9,0.3]
[1721389034596,11.61502683,3406.0,3405.9,0.3]
[1721389034954,9.37903683,3406.0,3405.9,0.3]
[1721389035291,11.53694049,3406.0,3405.9,0.3]
[1721389035592,12.31502683,3406.0,3405.9,0.3]
[1721389035958,12.21502683,3406.0,3405.9,0.3]
[1721389037268,14.06365833,3406.0,3405.9,0.3]
[1721389037592,12.21502683,3406.0,3405.9,0.3]
[1721389038470,14.06364265,3406.0,3405.9,0.3]
[1721389038675,13.96364265,3406.0,3405.9,0.3]
[1721389039203,12.11502683,3406.0,3405.9,0.3]
[1721389039407,13.9634743,3406.0,3405.9,0.3]
[1721389039607,12.11502683,3406.0,3405.9,0.3]
[1721389039904,5.67198,3406.0,3405.9,0.3]
[1721389040110,8.60797,3406.0,3405.9,0.3]
[1721389040271,5.57198,3406.0,3405.9,0.3]
[1721389040474,10.04841885,3406.0,3405.9,0.3]
[1721389040701,5.57198,3406.0,3405.9,0.3]
[1721389041469,7.11243828,3406.0,3405.9,0.3]
[1721389041670,5.47198,3406.0,3405.9,0.3]
[1721389043016,8.30797,3406.0,3405.9,0.3]
[1721389043312,9.32358056,3406.0,3405.9,0.3]
[1721389043681,11.17171621,3406.0,3405.9,0.3]
[1721389044008,11.02358056,3406.0,3405.9,0.3]
[1721389044216,10.92358056,3406.0,3405.9,0.3]
[1721389044382,13.85957056,3406.0,3405.9,0.3]
[1721389045307,13.75957056,3406.0,3405.9,0.3]
[1721389045874,10.82358056,3406.0,3405.9,0.3]
[1721389046604,11.52358056,3406.0,3405.9,0.3]
[1721389047200,13.3705924,3406.0,3405.9,0.3]
[1721389048120,13.2705924,3406.0,3405.9,0.3]
[1721389048305,11.42358056,3406.0,3405.9,0.3]
[1721389048916,13.2705924,3406.0,3405.9,0.3]
[1721389049117,13.27078154,3406.0,3405.9,0.3]
[1721389049320,13.17078154,3406.0,3405.9,0.3]
[1721389050811,13.07078154,3406.0,3405.9,0.3]
[1721389052288,14.12358056,3406.0,3405.9,0.3]
[1721389053408,14.02358056,3406.0,3405.9,0.3]
[1721389054710,15.77118899,3406.0,3405.9,0.3]
[1721389055219,13.92358056,3406.0,3405.9,0.3]
[1721389055593,15.77135792,3406.0,3405.9,0.3]
[1721389056101,15.67135792,3406.0,3405.9,0.3]
[1721389057119,16.37135792,3406.0,3405.9,0.3]
[1721389057288,14.52358056,3406.0,3405.9,0.3]
[1721389058434,14.42358056,3406.0,3405.9,0.3]
[1721389058938,8.77198,3406.0,3405.9,0.3]
[1721389059486,8.67198,3406.0,3405.9,0.3]
[1721389059888,10.52013898,3406.0,3405.9,0.3]
[1721389060090,8.67198,3406.0,3405.9,0.3]
[1721389060723,10.52013898,3406.0,3405.9,0.3]
[1721389061022,8.67198,3406.0,3405.9,0.3]
[1721389061225,10.42013898,3406.0,3405.9,0.3]
[1721389061748,8.57198,3406.0,3405.9,0.3]
[1721389061955,8.47198,3406.0,3405.9,0.3]
[1721389062148,10.32048809,3406.0,3405.9,0.3]
[1721389062378,8.47198,3406.0,3405.9,0.3]
[1721389063257,10.22048809,3406.0,3405.9,0.3]
[1721389064170,8.37198,3406.0,3405.9,0.3]
[1721389064333,8.27198,3406.0,3405.9,0.3]
[1721389065572,8.17198,3406.0,3405.9,0.3]
[1721389066519,8.07198,3406.0,3405.9,0.3]
[1721389066843,8.87198,3406.0,3405.9,0.3]
[1721389068558,12.547573,3406.0,3405.9,0.3]
[1721389068748,12.994463,3406.0,3405.9,0.3]
[1721389068942,14.84329252,3406.0,3405.9,0.3]
[1721389069522,16.44329252,3406.0,3405.9,0.3]
[1721389069721,14.594463,3406.0,3405.9,0.3]
[1721389071148,16.65143077,3406.0,3405.9,0.3]
[1721389071352,14.494463,3406.0,3405.9,0.3]
[1721389071676,16.65135057,3406.0,3405.9,0.3]
[1721389071959,14.494463,3406.0,3405.9,0.3]
[1721389072326,14.394463,3406.0,3405.9,0.3]
[1721389072737,19.00805057,3406.0,3405.9,0.3]
[1721389073661,18.90805057,3406.0,3405.9,0.3]
[1721389074271,21.84404057,3406.0,3405.9,0.3]
[1721389074569,16.751163,3406.0,3405.9,0.3]
[1721389074727,18.90987316,3406.0,3405.9,0.3]
[1721389075129,18.80987316,3406.0,3405.9,0.3]
[1721389075356,21.74586316,3406.0,3405.9,0.3]
[1721389075563,18.80987316,3406.0,3405.9,0.3]
[1721389075739,16.651163,3406.0,3405.9,0.3]
[1721389075940,18.80987316,3406.0,3405.9,0.3]
[1721389076137,18.70987316,3406.0,3405.9,0.3]
[1721389076346,16.551163,3406.0,3405.9,0.3]
[1721389077256,17.251163,3406.0,3405.9,0.3]
[1721389078168,20.187153,3406.0,3405.9,0.3]
[1721389078472,20.087153,3406.0,3405.9,0.3]
[1721389078966,23.023143,3406.0,3405.9,1e-05]
[1721389079173,26.12316921,3406.0,3405.9,1e-05]
[1721389079669,26.02316921,3406.0,3405.9,1e-05]
[1721389080142,23.08717921,3406.0,3405.9,1e-05]
[1721389080847,23.08697241,3406.0,3405.9,1e-05]
[1721389082173,22.98697241,3406.0,3405.9,1e-05]
[1721389082471,20.437153,3406.0,3405.9,1e-05]
[1721389083775,20.337153,3406.0,3405.9,1e-05]
[1721389085093,17.330453,3406.0,3405.9,1e-05]
[1721389085293,19.48799715,3406.0,3405.9,1e-05]
[1721389085453,17.330453,3406.0,3405.9,1e-05]
[1721389087047,17.50880539,3406.0,3405.9,1e-05]
[1721389087566,15.351463,3406.0,3405.9,1e-05]
[1721389087884,17.628563,3406.0,3405.9,1e-05]
[1721389088082,19.78590539,3406.0,3405.9,1e-05]
[1721389089073,19.68590539,3406.0,3405.9,1e-05]
[1721389089450,17.40880539,3406.0,3405.9,1e-05]
[1721389089790,15.251463,3406.0,3405.9,1e-05]
[1721389090084,17.4089729,3406.0,3405.9,1e-05]
[1721389091088,15.251463,3406.0,3405.9,1e-05]
[1721389091250,18.187453,3406.0,3405.9,1e-05]
[1721389091446,15.251463,3406.0,3405.9,1e-05]
[1721389091646,17.4089729,3406.0,3405.9,1e-05]
[1721389093072,15.251463,3406.0,3405.9,1e-05]
[1721389093273,17.40890561,3406.0,3405.9,1e-05]
[1721389094178,15.251463,3406.0,3405.9,1e-05]
[1721389094763,14.194463,3406.0,3405.9,1e-05]
[1721389094952,12.26497,3406.0,3405.9,2.40351]
[1721389095151,13.05706159,3406.0,3405.9,2.40351]
[1721389095455,11.20797,3406.0,3405.9,2.40351]
[1721389095854,5.87198,3406.0,3405.9,2.40351]
[1721389096794,7.41264538,3406.0,3405.9,2.40351]
[1721389097091,7.10442864,3406.0,3405.9,2.643861]
[1721389097853,5.87198,3406.0,3405.9,2.643861]
[1721389100285,4.16837864,3406.1,3405.9,2.643861]
[1721389100540,1.53989859,3406.3,3405.9,2.643861]
[1721389100541,1.23244864,3406.3,3406.0,1.057]
[1721389100737,4.16795864,3406.6,3406.1,2.7072861]
[1721389101023,2.93551,3406.6,3406.1,2.7072861]